fUSD/lending_fUSD_20250209
["ID","MTS","AMOUNT","RATE_DAILY","PERIOD"]
[352432482,1739106648123,-500.0,0.00010621,2]
[352432483,1739106648135,-500.0,0.00010621,2]
[352432484,1739106648147,-471.55421426,0.00010621,2]
[352432485,1739106648159,-500.0,0.00010621,2]
[352432486,1739106648169,-500.0,0.00010621,2]
[352432487,1739106648180,-500.0,0.00010621,2]
[352432488,1739106648190,-500.0,0.00010621,2]
[352432489,1739106648200,-501.22687295,0.00010621,2]
[352432490,1739106648211,-500.0,0.00010621,2]
[352432491,1739106648221,-500.0,0.00010621,2]
[352432492,1739106648231,-500.0,0.00010621,2]
[352432493,1739106648242,-500.0,0.00010621,2]
[352432494,1739106648254,-507.03117194,0.00010621,2]
[352432495,1739106648266,-500.0,0.00010621,2]
[352432496,1739106648276,-500.0,0.00010621,2]
[352432497,1739106648287,-500.0,0.00010621,2]
[352432498,1739106648297,-500.0,0.00010621,2]
[352432499,1739106648308,-513.87663004,0.00010621,2]
[352432500,1739106648319,-500.0,0.00010621,2]
[352432501,1739106648330,-500.0,0.00010621,2]
[352432502,1739106648341,-1071.2,0.00010621,2]
[352432503,1739106648352,-500.0,0.00010621,2]
[352432504,1739106648364,-500.0,0.00010621,2]
[352432505,1739106648374,-500.0,0.00010621,2]
[352432506,1739106648385,-508.56807783,0.00010621,2]
[352432507,1739106648396,-500.0,0.00010621,2]
[352432508,1739106648407,-500.0,0.00010621,2]
[352432509,1739106648418,-500.0,0.00010621,2]
[352432510,1739106648429,-501.56101778,0.00010621,2]
[352432511,1739106648439,-500.0,0.00010621,2]
[352432512,1739106648450,-501.83467445,0.00010621,2]
[352432513,1739106648461,-500.0,0.00010621,2]
[352432514,1739106648471,-500.0,0.00010621,2]
[352432515,1739106648482,-500.0,0.00010621,2]
[352432516,1739106648492,-500.0,0.00010621,2]
[352432517,1739106648502,-998.49,0.00010621,2]
[352432518,1739106648514,-503.34800982,0.00010621,2]
[352432519,1739106648525,-639.30250542,0.00010621,2]
[352432520,1739106648535,-500.0,0.00010621,2]
[352432521,1739106648547,-500.0,0.00010621,2]
[352432522,1739106648557,-500.79430067,0.00010621,2]
[352432523,1739106648569,-736.96,0.00010621,2]
[352432524,1739106648580,-570.11,0.00010621,2]
[352432525,1739106648591,-500.0,0.00010621,2]
[352432526,1739106648602,-503.8489652,0.00010621,2]
[352432527,1739106648612,-455.74038839,0.00010621,2]
[352432528,1739106648624,-502.22945296,0.00010621,2]
[352432529,1739106648635,-503.70900992,0.00010621,2]
[352432530,1739106648645,-501.28288618,0.00010621,2]
[352432531,1739106648656,-523.47286786,0.00010621,2]
[352432532,1739106648668,-500.0,0.00010621,2]
[352432533,1739106648678,-500.0,0.00010621,2]
[352432534,1739106648689,-500.0,0.00010621,2]
[352432535,1739106648700,-500.0,0.00010621,2]
[352432536,1739106648710,-500.45145198,0.00010621,2]
[352432537,1739106648722,-500.0,0.00010621,2]
[352432538,1739106648733,-341.45990976,0.00010621,2]
[352432539,1739106648743,-670.18,0.00010621,2]
[352432540,1739106648753,-500.0,0.00010621,2]
[352432541,1739106648764,-500.0,0.00010621,2]
[352432542,1739106648774,-507.51739947,0.00010621,2]
[352432543,1739106648785,-500.0,0.00010621,2]
[352432544,1739106648796,-502.63950676,0.00010621,2]
[352432545,1739106648806,-500.0,0.00010621,2]
[352432546,1739106648816,-500.0,0.00010621,2]
[352432547,1739106648827,-524.33204814,0.00010621,2]
[352432548,1739106648838,-500.0,0.00010621,2]
[352432549,1739106648848,-500.0,0.00010621,2]
[352432550,1739106648860,-500.0,0.00010621,2]
[352432551,1739106648871,-500.0,0.00010621,2]
[352432552,1739106648885,-656.35,0.00010621,2]
[352432553,1739106648896,-504.92760412,0.00010621,2]
[352432554,1739106648907,-500.0,0.00010621,2]
[352432555,1739106648919,-500.0,0.00010621,2]
[352432556,1739106648930,-500.0,0.00010621,2]
[352432557,1739106648941,-500.0,0.00010621,2]
[352432558,1739106648953,-500.0,0.00010621,2]
[352432559,1739106648966,-500.0,0.00010621,2]
[352432560,1739106648978,-500.0,0.00010621,2]
[352432561,1739106648989,-500.0,0.00010621,2]
[352432562,1739106649000,-500.0,0.00010621,2]
[352432563,1739106649011,-190.02391407,0.00010621,2]
[352432564,1739106649022,-500.0,0.00010621,2]
[352432565,1739106649033,-729.36,0.00010621,2]
[352432566,1739106649045,-500.0,0.00010621,2]
[352432567,1739106649056,-500.0,0.00010621,2]
[352432568,1739106649069,-500.0,0.00010621,2]
[352432569,1739106649080,-500.95216618,0.00010621,2]
[352432570,1739106649092,-502.49627225,0.00010621,2]
[352432571,1739106649102,-500.0,0.00010621,2]
[352432572,1739106649113,-500.0,0.00010621,2]
[352432573,1739106649124,-501.77270155,0.00010621,2]
[352432574,1739106649134,-502.43399734,0.00010621,2]
[352432575,1739106649144,-569.77,0.00010621,2]
[352432576,1739106649155,-500.0,0.00010621,2]
[352432577,1739106649164,-500.0,0.00010621,2]
[352432578,1739106649175,-500.0,0.00010621,2]
[352432579,1739106649187,-500.0,0.00010621,2]
[352432580,1739106649197,-500.0,0.00010621,2]
[352432581,1739106649207,-500.0,0.00010621,2]
[352432582,1739106649217,-500.0,0.00010621,2]
[352432583,1739106649227,-1076.58,0.00010621,2]
[352432584,1739106649237,-500.0,0.00010621,2]
[352432585,1739106649248,-509.07773861,0.00010621,2]
[352432586,1739106649258,-413.03108018,0.00010621,2]
[352432587,1739106649268,-500.0,0.00010621,2]
[352432588,1739106649278,-500.0,0.00010621,2]
[352432589,1739106649288,-500.0,0.00010621,2]
[352432590,1739106649299,-502.72214065,0.00010621,2]
[352432591,1739106649310,-500.0,0.00010621,2]
[352432592,1739106649320,-500.0,0.00010621,2]
[352432593,1739106649330,-499.99535576,0.00010621,2]
[352432594,1739106649340,-500.0,0.00010621,2]
[352432595,1739106649351,-500.0,0.00010621,2]
[352432596,1739106649361,-500.0,0.00010621,2]
[352432597,1739106649371,-578.4,0.00010622,2]
[352432598,1739106649380,-1250.56,0.00010622,2]
[352432599,1739106649390,-899.05,0.00010622,2]
[352432600,1739106649400,-618.21,0.00010622,2]
[352432601,1739106649410,-662.14,0.00010622,2]
[352432602,1739106649420,-500.0,0.00010622,2]
[352432603,1739106649430,-752.33,0.00010622,2]
[352432604,1739106649440,-742.165682,0.00010622,2]
[352432605,1739106649450,-500.0,0.00010622,2]
[352432606,1739106649460,-1019.86,0.00010622,2]
[352432607,1739106649470,-980.67,0.00010622,2]
[352432608,1739106649480,-1329.47,0.00010622,2]
[352432609,1739106649490,-783.393527,0.00010622,2]
[352432610,1739106649500,-500.0,0.00010622,2]
[352432611,1739106649511,-535.53,0.00010622,2]
[352432612,1739106649521,-500.0,0.00010622,2]
[352432613,1739106649531,-500.0,0.00010622,2]
[352432614,1739106649541,-500.0,0.00010622,2]
[352432615,1739106649551,-523.83,0.00010622,2]
[352432616,1739106649561,-919.3,0.00010622,2]
[352432617,1739106649572,-500.0,0.00010622,2]
[352432618,1739106649583,-1920.06,0.00010622,2]
[352432619,1739106649592,-787.71,0.00010622,2]
[352432620,1739106649603,-500.0,0.00010622,2]
[352432621,1739106649613,-1998.86,0.00010622,2]
[352432622,1739106649623,-540.82,0.00010622,2]
[352432623,1739106649633,-1113.24,0.00010622,2]
[352432624,1739106649643,-928.63,0.00010622,2]
[352432625,1739106649652,-851.99,0.00010622,2]
[352432626,1739106649662,-1023.94,0.00010622,2]
[352432627,1739106649672,-755.52,0.00010622,2]
[352432628,1739106649682,-500.0,0.00010622,2]
[352432629,1739106649692,-601.89,0.00010622,2]
[352432630,1739106649702,-829.34,0.00010622,2]
[352432631,1739106649711,-803.98,0.00010622,2]
[352432632,1739106649723,-2771.04,0.00010622,2]
[352432633,1739106649732,-794.85,0.00010622,2]
[352432634,1739106649742,-1039.27,0.00010622,2]
[352432635,1739106649752,-870.78,0.00010622,2]
[352432636,1739106649762,-500.66,0.00010622,2]
[352432637,1739106649772,-914.61,0.00010622,2]
[352432638,1739106649782,-1200.03,0.00010622,2]
[352432639,1739106649792,-1124.57,0.00010622,2]
[352432640,1739106649802,-908.92,0.00010622,2]
[352432641,1739106649811,-500.0,0.00010622,2]
[352432642,1739106649821,-1060.39,0.00010622,2]
[352432643,1739106649830,-2161.3,0.00010622,2]
[352432644,1739106649840,-556.45,0.00010622,2]
[352432645,1739106649850,-939.07,0.00010622,2]
[352432646,1739106649860,-860.85,0.00010622,2]
[352432647,1739106649871,-500.0,0.00010622,2]
[352432648,1739106649881,-1068.19,0.00010622,2]
[352432649,1739106649892,-1238.31,0.00010622,2]
[352432650,1739106649902,-525.14,0.00010622,2]
[352432651,1739106649912,-813.79,0.00010622,2]
[352432652,1739106649923,-1066.96,0.00010622,2]
[352432653,1739106649932,-1397.61,0.00010622,2]
[352432654,1739106649942,-1371.09,0.00010622,2]
[352432655,1739106650175,-924.82,0.00010622,2]
[352432656,1739106650184,-500.0,0.00010622,2]
[352432657,1739106650193,-945.49,0.00010622,2]
[352432658,1739106650202,-1107.28,0.00010622,2]
[352432659,1739106650211,-515.19,0.00010622,2]
[352432660,1739106650222,-1000.0,0.00010622,2]
[352432661,1739106650231,-1205.06,0.00010622,2]
[352432662,1739106650241,-1100.04,0.00010622,2]
[352432663,1739106650251,-588.03,0.00010622,2]
[352432664,1739106650260,-930.56,0.00010622,2]
[352432665,1739106650270,-877.41,0.00010622,2]
[352432666,1739106650279,-500.0,0.00010622,2]
[352432667,1739106650288,-500.0,0.00010622,2]
[352432668,1739106650297,-1224.28,0.00010622,2]
[352432669,1739106650307,-500.0,0.00010622,2]
[352432670,1739106650318,-882.75,0.00010622,2]
[352432671,1739106650327,-1057.59,0.00010622,2]
[352432672,1739106650337,-500.0,0.00010622,2]
[352432673,1739106650347,-500.0,0.00010622,2]
[352432674,1739106650356,-776.1,0.00010622,2]
[352432675,1739106650366,-500.0,0.00010622,2]
[352432676,1739106650375,-519.86858643,0.00010622,2]
[352432677,1739106650386,-567.86744554,0.00010622,2]
[352432678,1739106650396,-500.0,0.00010622,2]
[352432679,1739106650406,-500.0,0.00010622,2]
[352432680,1739106650416,-501.52382882,0.00010622,2]
[352432681,1739106650425,-573.16,0.00010622,2]
[352432682,1739106650435,-942.26,0.00010622,2]
[352432683,1739106650446,-500.0,0.00010623,2]
[352432684,1739106650456,-510.9926532,0.00010623,2]
[352432685,1739106650467,-500.0,0.00010623,2]
[352432686,1739106650477,-178.7,0.00010623,2]
[352432687,1739106650487,-176.43844117,0.00010623,2]
[352432688,1739106650496,-500.0,0.00010623,2]
[352432689,1739106650506,-500.0,0.00010623,2]
[352432690,1739106650515,-631.71,0.00010623,2]
[352432691,1739106650525,-500.0,0.00010623,2]
[352432692,1739106650534,-500.0,0.00010623,2]
[352432693,1739106650543,-500.0,0.00010623,2]
[352432694,1739106650553,-500.0,0.00010623,2]
[352432695,1739106650563,-500.0,0.00010623,2]
[352432696,1739106650574,-500.0,0.00010623,2]
[352432697,1739106650583,-500.0,0.00010623,2]
[352432698,1739106650593,-500.0,0.00010623,2]
[352432699,1739106650602,-791.05,0.00010623,2]
[352432700,1739106650611,-567.59,0.00010623,2]
[352432701,1739106650621,-500.0,0.00010623,2]
[352432702,1739106650634,-500.0,0.00010623,2]
[352432703,1739106650644,-500.0,0.00010623,2]
[352432704,1739106650655,-500.0,0.00010623,2]
[352432705,1739106650664,-500.0,0.00010623,2]
[352432706,1739106650674,-355.97015129,0.00010623,2]
[352432707,1739106651038,-144.02984871,0.00010623,2]
[352432708,1739106651049,-500.0,0.00010623,2]
[352432709,1739106651060,-500.0,0.00010623,2]
[352432710,1739106651070,-574.32,0.00010623,2]
[352432711,1739106651081,-500.0,0.00010623,2]
[352432712,1739106651090,-500.0,0.00010623,2]
[352432713,1739106651100,-500.0,0.00010623,2]
[352432714,1739106651110,-525.9920485,0.00010623,2]
[352432715,1739106651120,-672.63,0.00010623,2]
[352432716,1739106651131,-503.21153874,0.00010623,2]
[352432717,1739106651141,-447.46150176,0.00010623,2]
[352432718,1739106651151,-500.0,0.00010623,2]
[352432719,1739106651160,-503.43760617,0.00010623,2]
[352432720,1739106651170,-500.0,0.00010623,2]
[352432721,1739106651180,-500.0,0.00010623,2]
[352432722,1739106651189,-500.0,0.00010623,2]
[352432723,1739106651199,-500.0,0.00010623,2]
[352432724,1739106651209,-500.0,0.00010623,2]
[352432725,1739106651219,-500.0,0.00010623,2]
[352432726,1739106651228,-500.0,0.00010623,2]
[352432727,1739106651237,-500.0,0.00010623,2]
[352432728,1739106651247,-500.0,0.00010623,2]
[352432729,1739106651256,-500.0,0.00010623,2]
[352432730,1739106651266,-500.0,0.00010623,2]
[352432731,1739106651276,-500.0,0.00010623,2]
[352432732,1739106651285,-500.0,0.00010623,2]
[352432733,1739106651294,-500.0,0.00010623,2]
[352432734,1739106651304,-500.0,0.00010623,2]
[352432735,1739106651313,-500.0,0.00010623,2]
[352432736,1739106651323,-500.0,0.00010623,2]
[352432737,1739106651332,-500.0,0.00010623,2]
[352432738,1739106651342,-500.0,0.00010623,2]
[352432739,1739106651352,-500.0,0.00010623,2]
[352432740,1739106651362,-500.0,0.00010623,2]
[352432741,1739106651371,-500.0,0.00010623,2]
[352432742,1739106651381,-500.0,0.00010623,2]
[352432743,1739106651390,-500.0,0.00010623,2]
[352432744,1739106651400,-500.0,0.00010623,2]
[352432745,1739106651410,-500.0,0.00010623,2]
[352432746,1739106651419,-500.0,0.00010623,2]
[352432747,1739106651428,-500.0,0.00010623,2]
[352432748,1739106651437,-500.0,0.00010623,2]
[352432749,1739106651447,-500.0,0.00010623,2]
[352432750,1739106651457,-500.0,0.00010623,2]
[352432751,1739106651468,-500.0,0.00010623,2]
[352432752,1739106651478,-570.65,0.00010623,2]
[352432753,1739106651487,-500.0,0.00010623,2]
[352432754,1739106651496,-500.0,0.00010623,2]
[352432755,1739106651506,-500.0,0.00010623,2]
[352432756,1739106651516,-500.0,0.00010623,2]
[352432757,1739106651526,-729.94,0.00010623,2]
[352432758,1739106651535,-500.0,0.00010623,2]
[352432759,1739106651544,-562.47,0.00010623,2]
[352432760,1739106651554,-500.0,0.00010623,2]
[352432761,1739106651563,-500.0,0.00010623,2]
[352432762,1739106651573,-500.0,0.00010623,2]
[352432763,1739106651582,-500.0,0.00010623,2]
[352432764,1739106651591,-669.85,0.00010623,2]
[352432765,1739106651601,-500.0,0.00010623,2]
[352432766,1739106651611,-503.68277338,0.00010623,2]
[352432767,1739106651621,-500.0,0.00010623,2]
[352432768,1739106651630,-500.0,0.00010623,2]
[352432769,1739106651639,-500.0,0.00010623,2]
[352432770,1739106651649,-500.0,0.00010623,2]
[352432771,1739106651659,-500.0,0.00010623,2]
[352432772,1739106651669,-500.0,0.00010623,2]
[352432773,1739106651678,-554.06,0.00010623,2]
[352432774,1739106651688,-500.0,0.00010623,2]
[352432775,1739106651698,-500.0,0.00010623,2]
[352432776,1739106651708,-500.0,0.00010623,2]
[352432777,1739106651718,-534.51,0.00010623,2]
[352432778,1739106651728,-500.0,0.00010623,2]
[352432779,1739106651737,-500.0,0.00010623,2]
[352432780,1739106651747,-500.0,0.00010623,2]
[352432781,1739106651756,-500.0,0.00010623,2]
[352432782,1739106651765,-712.06,0.00010623,2]
[352432783,1739106651775,-500.0,0.00010623,2]
[352432784,1739106651784,-877.97,0.00010623,2]
[352432785,1739106651794,-500.0,0.00010623,2]
[352432786,1739106651803,-500.0,0.00010623,2]
[352432787,1739106651812,-500.0,0.00010623,2]
[352432788,1739106651822,-864.27,0.00010623,2]
[352432789,1739106651831,-500.0,0.00010623,2]
[352432790,1739106651840,-500.0,0.00010623,2]
[352432791,1739106651850,-500.0,0.00010623,2]
[352432792,1739106651860,-500.0,0.00010623,2]
[352432793,1739106651870,-500.0,0.00010623,2]
[352432794,1739106651879,-500.0,0.00010623,2]
[352432795,1739106651891,-500.0,0.00010623,2]
[352432796,1739106651901,-500.0,0.00010623,2]
[352432797,1739106651910,-500.0,0.00010623,2]
[352432798,1739106651920,-868.57,0.00010623,2]
[352432799,1739106651930,-534.18,0.00010623,2]
[352432800,1739106651940,-587.36,0.00010623,2]
[352432801,1739106651950,-1185.62,0.00010623,2]
[352432802,1739106651960,-500.0,0.00010623,2]
[352432803,1739106651969,-500.0,0.00010623,2]
[352432804,1739106651979,-500.0,0.00010623,2]
[352432805,1739106651988,-500.0,0.00010623,2]
[352432806,1739106651998,-500.0,0.00010623,2]
[352432807,1739106652008,-500.0,0.00010623,2]
[352432808,1739106652018,-500.0,0.00010623,2]
[352432809,1739106652028,-279.82,0.00010623,2]
[352432810,1739106652037,-500.0,0.00010623,2]
[352432811,1739106652047,-500.0,0.00010623,2]
[352432812,1739106652056,-500.0,0.00010623,2]
[352432813,1739106652065,-532.48,0.00010623,2]
[352432814,1739106652075,-500.0,0.00010623,2]
[352432815,1739106652084,-379.51,0.00010623,2]
[352432816,1739106652094,-500.0,0.00010623,2]
[352432817,1739106652104,-500.0,0.00010623,2]
[352432818,1739106652113,-500.0,0.00010623,2]
[352432819,1739106652123,-500.0,0.00010624,2]
[352432820,1739106652132,-535.224,0.00010626,2]
[352432821,1739106652142,-150.0,0.00010626,2]
[352432822,1739106652152,-500.0,0.00010626,2]
[352432823,1739106652162,-150.0,0.00010653,2]
[352432824,1739106652171,-500.0,0.00010653,2]
[352432825,1739106652180,-358.10113968,0.00010658,2]
[352432826,1739106652189,-5535.172,0.00010669,2]
[352432827,1739106652200,-285.207,0.00010669,2]
[352432828,1739106652211,-501.0182075,0.00010672,2]
[352432829,1739106652224,-500.0,0.00010672,2]
[352432830,1739106652237,-560.46,0.00010672,2]
[352432831,1739106652250,-161.39708242,0.00010673,2]
[352432832,1739106652262,-160.4936251,0.00010673,2]
[352432833,1739106652275,-152.57884002,0.00010673,2]
[352432834,1739106652286,-500.0,0.00010673,2]
[352432835,1739106652297,-151.35579749,0.00010673,2]
[352432836,1739106652310,-250.0,0.00010673,2]
[352432837,1739106652321,-154.049,0.00010673,2]
[352432838,1739106652333,-150.747,0.00010673,2]
[352432839,1739106652345,-170.418,0.00010673,2]
[352432840,1739106652357,-2024.0,0.00010673,2]
[352432841,1739106652369,-1273.0,0.00010673,2]
[352432842,1739106652381,-658.828,0.00010673,2]
[352432843,1739106652392,-638.0,0.00010673,2]
[352432844,1739106652403,-213.359,0.00010673,2]
[352432845,1739106652413,-276.574,0.00010673,2]
[352432846,1739106652426,-1949.0,0.00010673,2]
[352432847,1739106652438,-783.0,0.00010673,2]
[352432848,1739106652450,-907.0,0.00010673,2]
[352432849,1739106652463,-1264.0,0.00010673,2]
[352432850,1739106652475,-2954.0,0.00010673,2]
[352432851,1739106652488,-539.0,0.00010673,2]
[352432852,1739106652500,-1007.0,0.00010673,2]
[352432853,1739106652512,-155.924,0.00010673,2]
[352432854,1739106652524,-3913.0,0.00010673,2]
[352432855,1739106652539,-1108.0,0.00010673,2]
[352432856,1739106652550,-220.239,0.00010681,2]
[352432857,1739106652562,-500.0,0.00010681,2]
[352432858,1739106652574,-200.0,0.000107,3]
[352432859,1739106652586,-500.0,0.00010708,2]
[352432860,1739106652597,-431.7357272,0.00010711,2]
[352432861,1739106652609,-500.0,0.00010736,2]
[352432862,1739106652621,-500.0,0.00010751,2]
[352432863,1739106652633,-16435.82052061,0.00010758,2]
[352432864,1739106652646,-2431.82146815,0.00010758,2]
[352432865,1739106652657,-500.0,0.00010758,2]
[352432866,1739106652668,-502.07789325,0.00010758,2]
[352432867,1739106652680,-502.92614776,0.00010758,2]
[352432868,1739106652690,-500.0,0.00010758,2]
[352432869,1739106652700,-501.4767912,0.00010758,2]
[352432870,1739106652712,-354.25,0.00010758,2]
[352432871,1739106652725,-505.81166266,0.00010758,2]
[352432872,1739106652738,-500.0,0.00010758,2]
[352432873,1739106652752,-502.75950749,0.00010758,2]
[352432874,1739106652764,-500.0,0.00010758,2]
[352432875,1739106652774,-500.0,0.00010758,2]
[352432876,1739106652785,-500.0,0.00010758,2]
[352432877,1739106652795,-500.0,0.00010758,2]
[352432878,1739106652806,-502.32489401,0.00010758,2]
[352432879,1739106652817,-500.0,0.00010758,2]
[352432880,1739106652831,-500.0,0.00010758,2]
[352432881,1739106652843,-500.0,0.00010758,2]
[352432882,1739106652856,-500.0,0.00010758,2]
[352432883,1739106652867,-500.0,0.00010758,2]
[352432884,1739106652878,-500.0,0.00010758,2]
[352432885,1739106652891,-500.0,0.00010758,2]
[352432886,1739106652903,-500.0,0.00010758,2]
[352432887,1739106652915,-500.0,0.00010758,2]
[352432888,1739106652927,-500.0,0.00010758,2]
[352432889,1739106652938,-512.05213136,0.00010758,2]
[352432890,1739106652950,-500.0,0.00010758,2]
[352432891,1739106652963,-500.0,0.00010758,2]
[352432892,1739106652975,-500.0,0.00010758,2]
[352432893,1739106652986,-500.0,0.00010758,2]
[352432894,1739106652997,-500.0,0.00010758,2]
[352432895,1739106653012,-500.0,0.00010758,2]
[352432896,1739106653023,-500.0,0.00010758,2]
[352432897,1739106653034,-500.0,0.00010758,2]
[352432898,1739106653046,-500.0,0.00010758,2]
[352432899,1739106653057,-500.0,0.00010758,2]
[352432900,1739106653068,-500.0,0.00010758,2]
[352432901,1739106653079,-500.0,0.00010758,2]
[352432902,1739106653091,-500.0,0.00010758,2]
[352432903,1739106653102,-500.0,0.00010758,2]
[352432904,1739106653113,-500.0,0.00010758,2]
[352432905,1739106653125,-500.0,0.00010758,2]
[352432906,1739106653137,-500.0,0.00010758,2]
[352432907,1739106653149,-500.0,0.00010758,2]
[352432908,1739106653160,-500.0,0.00010758,2]
[352432909,1739106653172,-500.0,0.00010758,2]
[352432910,1739106653184,-543.73,0.00010758,2]
[352432911,1739106653196,-500.0,0.00010758,2]
[352432912,1739106653208,-500.0,0.00010758,2]
[352432913,1739106653220,-537.06924038,0.00010758,2]
[352432914,1739106653231,-500.0,0.00010758,2]
[352432915,1739106653243,-500.0,0.00010758,2]
[352432916,1739106653254,-500.0,0.00010758,2]
[352432917,1739106653266,-500.0,0.00010758,2]
[352432918,1739106653278,-500.0,0.00010758,2]
[352432919,1739106653288,-500.0,0.00010758,2]
[352432920,1739106653300,-500.0,0.00010758,2]
[352432921,1739106653312,-550.12102332,0.00010758,2]
[352432922,1739106653323,-500.0,0.00010758,2]
[352432923,1739106653335,-500.0,0.00010758,2]
[352432924,1739106653347,-500.0,0.00010758,2]
[352432925,1739106653359,-500.0,0.00010758,2]
[352432926,1739106653370,-527.13064871,0.00010758,2]
[352432927,1739106653382,-500.0,0.00010758,2]
[352432928,1739106653393,-500.0,0.00010758,2]
[352432929,1739106653403,-500.0,0.00010758,2]
[352432930,1739106653414,-500.0,0.00010758,2]
[352432931,1739106653426,-500.0,0.00010758,2]
[352432932,1739106653437,-255.73531834,0.00010758,2]
[352432933,1739106653449,-500.0,0.00010758,2]
[352432934,1739106653460,-500.0,0.00010758,2]
[352432935,1739106653473,-500.0,0.00010758,2]
[352432936,1739106653484,-500.0,0.00010758,2]
[352432937,1739106653496,-500.0,0.00010758,2]
[352432938,1739106653507,-502.57245286,0.00010758,2]
[352432939,1739106653518,-500.0,0.00010758,2]
[352432940,1739106653529,-502.44017519,0.00010758,2]
[352432941,1739106653540,-500.0,0.00010758,2]
[352432942,1739106653552,-500.0,0.00010758,2]
[352432943,1739106653563,-500.0,0.00010758,2]
[352432944,1739106653574,-500.0,0.00010758,2]
[352432945,1739106653585,-500.0,0.00010758,2]
[352432946,1739106653596,-362.21719472,0.00010758,2]
[352432947,1739106653607,-500.0,0.00010758,2]
[352432948,1739106653618,-502.238208,0.00010758,2]
[352432949,1739106653629,-500.0,0.00010758,2]
[352432950,1739106653640,-500.0,0.00010758,2]
[352432951,1739106653652,-500.0,0.00010758,2]
[352432952,1739106653663,-467.66994128,0.00010758,2]
[352432953,1739106653674,-500.0,0.00010758,2]
[352432954,1739106653685,-595.78953645,0.00010758,2]
[352432955,1739106653696,-500.0,0.00010758,2]
[352432956,1739106653707,-500.0,0.00010758,2]
[352432957,1739106653718,-500.0,0.00010758,2]
[352432958,1739106653731,-500.0,0.00010758,2]
[352432959,1739106653742,-500.0,0.00010758,2]
[352432960,1739106653754,-500.0,0.00010758,2]
[352432961,1739106653765,-500.0,0.00010758,2]
[352432962,1739106653775,-505.3734462,0.00010758,2]
[352432963,1739106653786,-627.77,0.00010758,2]
[352432964,1739106653797,-500.0,0.00010758,2]
[352432965,1739106653807,-500.0,0.00010758,2]
[352432966,1739106653818,-500.0,0.00010758,2]
[352432967,1739106653829,-500.0,0.00010758,2]
[352432968,1739106653840,-500.0,0.00010758,2]
[352432969,1739106653851,-500.0,0.00010758,2]
[352432970,1739106653862,-500.0,0.00010758,2]
[352432971,1739106653873,-500.0,0.00010758,2]
[352432972,1739106653887,-500.0,0.00010758,2]
[352432973,1739106653898,-500.0,0.00010758,2]
[352432974,1739106653909,-500.0,0.00010758,2]
[352432975,1739106653921,-500.0,0.00010758,2]
[352432976,1739106653933,-192.84853407,0.00010758,2]
[352432977,1739106653944,-500.0,0.00010758,2]
[352432978,1739106653956,-500.0,0.00010758,2]
[352432979,1739106653968,-500.0,0.00010758,2]
[352432980,1739106653980,-500.0,0.00010758,2]
[352432981,1739106653991,-467.19784368,0.00010758,2]